bitfinex/quotes_BTCUSD_20260117
["timestamp","ask_amount","ask_price","bid_price","bid_amount"]
[1768681798739,0.001,95296.0,95295.0,0.31808073]
[1768681798940,0.001,95296.0,95295.0,0.31799682]
[1768681800011,0.06296046,95298.0,95295.0,0.31799682]
[1768681800465,0.05246804,95297.0,95295.0,0.31799682]
[1768681800671,0.05246804,95297.0,95295.0,0.31486936]
[1768681800887,0.01149339,95298.0,95289.0,0.000177]
[1768681800888,0.01049406,95292.0,95289.0,0.000177]
[1768681801084,0.01049406,95292.0,95271.0,0.07556493]
[1768681801085,0.01044749,95286.0,95275.0,0.01049593]
[1768681801213,0.01049483,95285.0,95276.0,0.01049582]
[1768681801414,4.719e-05,95286.0,95277.0,0.01049571]
[1768681801652,0.01054191,95286.0,95276.0,0.01049582]
[1768681802092,0.01054191,95286.0,95277.0,0.01049571]
[1768681802302,4.719e-05,95286.0,95277.0,0.01049571]
[1768681802729,4.719e-05,95286.0,95278.0,0.0104956]
[1768681802973,4.719e-05,95286.0,95279.0,0.01067249]
[1768681803186,4.719e-05,95286.0,95279.0,0.000177]
[1768681804330,0.00104719,95286.0,95279.0,0.000177]
[1768681804529,0.01049494,95284.0,95279.0,0.000177]
[1768681804731,0.06297101,95282.0,95279.0,0.000177]
[1768681805577,0.01049571,95277.0,95268.0,0.000177]
[1768681805919,0.01049582,95276.0,95268.0,0.000177]
[1768681806313,0.01049593,95275.0,95268.0,0.000177]
[1768681806678,0.01049582,95276.0,95268.0,0.000177]
[1768681806912,0.01049582,95276.0,95268.0,0.0001191]
[1768681807148,0.01049571,95277.0,95268.0,0.0001191]
[1768681807312,0.01049571,95277.0,95268.0,0.0106158]
[1768681807518,0.01049571,95277.0,95268.0,0.0001191]
[1768681807905,0.01049571,95277.0,95268.0,0.0106158]
[1768681808884,0.01049571,95277.0,95268.0,0.0001191]
[1768681809088,0.01049571,95277.0,95268.0,0.0106158]
[1768681809439,0.01049571,95277.0,95268.0,0.0001191]
[1768681809642,0.01049571,95277.0,95268.0,0.0106158]
[1768681810062,0.01049571,95277.0,95268.0,0.0001191]
[1768681811671,0.01049582,95276.0,95268.0,0.0001191]
[1768681811850,0.01049571,95277.0,95268.0,0.0001191]
[1768681813175,0.01049582,95276.0,95268.0,0.0001191]
[1768681813523,0.01049571,95277.0,95268.0,0.0106158]
[1768681813669,0.01049582,95276.0,95267.0,0.01049681]
[1768681813873,0.01049571,95277.0,95267.0,0.01049681]
[1768681814079,0.25381047,95278.0,95268.0,0.0104967]
[1768681814516,0.01049571,95277.0,95268.0,0.01030237]
[1768681815310,0.39150607,95278.0,95269.0,0.01049659]
[1768681815676,0.01049571,95277.0,95268.0,0.01030237]
[1768681816927,0.39150607,95278.0,95269.0,0.01049659]
[1768681817130,0.39150607,95278.0,95268.0,0.01030237]
[1768681817131,0.01049571,95277.0,95268.0,0.01030237]
[1768681817484,0.39150607,95278.0,95269.0,0.01049659]
[1768681817633,0.01049571,95277.0,95268.0,0.01030237]
[1768681818056,0.01049571,95277.0,95268.0,0.0104967]
[1768681818264,0.39150607,95278.0,95269.0,0.01049659]
[1768681818669,0.01049571,95277.0,95268.0,0.0104967]
[1768681820815,0.01049582,95276.0,95267.0,0.01049681]
[1768681821251,0.01049571,95277.0,95268.0,0.0104967]
[1768681821468,0.01049582,95276.0,95267.0,0.01049681]
[1768681822163,0.01049571,95277.0,95268.0,0.0104967]
[1768681822396,0.38101047,95278.0,95271.0,0.01049637]
[1768681822615,0.38101047,95278.0,95270.0,0.01049648]
[1768681822840,0.38101047,95278.0,95271.0,0.01049637]
[1768681823050,0.38101047,95278.0,95271.0,0.01030204]
[1768681823943,0.38101047,95278.0,95272.0,0.01030195]
[1768681824170,0.1272,95278.0,95272.0,0.01030195]
[1768681824630,0.1272,95278.0,95271.0,0.01030204]
[1768681825059,0.1272,95278.0,95272.0,0.01049626]
[1768681825266,0.1272,95278.0,95271.0,0.01030204]
[1768681825730,0.1272,95278.0,95269.0,0.01049659]
[1768681825936,0.1272,95278.0,95270.0,0.01049648]
[1768681826374,0.1272,95278.0,95271.0,0.01049637]
[1768681826790,0.1272,95278.0,95270.0,0.01010797]
[1768681827030,0.1272,95278.0,95271.0,0.01049637]
[1768681827245,0.1272,95278.0,95270.0,0.01010797]
[1768681828302,0.1272,95278.0,95270.0,0.01049648]
[1768681830438,0.1376956,95278.0,95270.0,0.01049648]
[1768681830642,0.1272,95278.0,95270.0,0.01049648]
[1768681831047,0.1272,95278.0,95271.0,0.01049637]
[1768681832033,0.1272,95278.0,95272.0,0.01049626]
[1768681832520,0.1272,95278.0,95271.0,0.01049637]
[1768681832922,0.1272,95278.0,95272.0,0.01049626]
[1768681833130,0.1272,95278.0,95271.0,0.01049637]
[1768681833370,0.1272,95278.0,95272.0,0.01049626]
[1768681834260,0.1272,95278.0,95271.0,0.01049637]
[1768681835252,0.1272,95278.0,95270.0,0.01049648]
[1768681835658,0.1272,95278.0,95271.0,0.01049637]
[1768681836282,0.1376956,95278.0,95270.0,0.01049648]
[1768681836898,0.01049571,95277.0,95269.0,0.01049659]
[1768681838203,0.01049582,95276.0,95268.0,0.0104967]
[1768681838384,0.01049571,95277.0,95269.0,0.01049659]
[1768681839260,0.01049582,95276.0,95268.0,0.0104967]
[1768681839442,0.01049571,95277.0,95269.0,0.01049659]
[1768681839662,0.1272,95278.0,95270.0,0.01049648]
[1768681841070,0.01049582,95276.0,95269.0,0.01049659]
[1768681841282,0.01049582,95276.0,95268.0,0.0104967]
[1768681842244,0.01049582,95276.0,95267.0,0.01049681]
[1768681842403,0.01049604,95274.0,95267.0,0.01049681]
[1768681842587,0.01049593,95275.0,95266.0,0.01049692]
[1768681842790,0.01049593,95275.0,95268.0,0.0104967]
[1768681842992,0.01049582,95276.0,95268.0,0.0104967]
[1768681844586,0.01049571,95277.0,95269.0,0.01049659]
[1768681846527,0.1376956,95278.0,95270.0,0.01049648]
[1768681847042,0.01049571,95277.0,95270.0,0.01049648]
[1768681847241,0.01049571,95277.0,95269.0,0.01049659]
[1768681848124,0.1376956,95278.0,95270.0,0.01049648]
[1768681848265,0.01049571,95277.0,95269.0,0.01049659]
[1768681848457,0.1376956,95278.0,95271.0,0.01049637]
[1768681848869,0.1272,95278.0,95271.0,0.01049637]
[1768681849095,0.1376956,95278.0,95270.0,0.01049648]
[1768681850072,0.1376956,95278.0,95271.0,0.01049637]
[1768681850321,0.01049571,95277.0,95269.0,0.01049659]
[1768681850976,0.1376956,95278.0,95270.0,0.01049648]
[1768681851344,0.01049571,95277.0,95270.0,0.01049648]
[1768681851536,0.1376956,95278.0,95271.0,0.01049637]
[1768681851743,0.1376956,95278.0,95270.0,0.01049648]
[1768681852692,0.01049571,95277.0,95269.0,0.01049659]
[1768681852865,0.01049571,95277.0,95270.0,0.01049648]
[1768681853797,0.01049582,95276.0,95268.0,0.0104967]
[1768681855007,0.01049571,95277.0,95269.0,0.01049659]
[1768681855210,0.01049582,95276.0,95268.0,0.0104967]
[1768681856175,0.01049593,95275.0,95268.0,0.0104967]
[1768681856586,0.01049593,95275.0,95267.0,0.01049681]
[1768681857031,0.01049582,95276.0,95267.0,0.01049681]
[1768681857238,0.01049582,95276.0,95268.0,0.0104967]
[1768681858597,0.01049593,95275.0,95268.0,0.0104967]
[1768681859118,0.01049593,95275.0,95266.0,0.01049692]
[1768681859274,0.01049615,95273.0,95264.0,0.01049714]
[1768681859486,0.01049615,95273.0,95259.0,0.12716]
[1768681859665,0.0104967,95268.0,95259.0,0.13765769]
[1768681859896,0.0104967,95268.0,95261.0,0.01049747]
[1768681860318,0.01049681,95267.0,95260.0,0.01049758]
[1768681860500,0.01049681,95267.0,95261.0,0.01049747]
[1768681860716,0.01049659,95269.0,95261.0,0.01049747]
[1768681860918,0.0104967,95268.0,95260.0,0.01049758]
[1768681861119,0.01049681,95267.0,95260.0,0.01049758]
[1768681861339,0.01049681,95267.0,95259.0,0.01049769]
[1768681862183,0.01049681,95267.0,95260.0,0.01049758]
[1768681862648,0.01049692,95266.0,95259.0,0.01049769]
[1768681863007,0.01049681,95267.0,95260.0,0.01049758]
[1768681863178,0.01049681,95267.0,95257.0,0.01049791]
[1768681863347,0.01049692,95266.0,95258.0,0.0104978]
[1768681863542,0.01049692,95266.0,95259.0,0.01049769]
[1768681863750,0.01049681,95267.0,95260.0,0.01049758]
[1768681863947,0.01049692,95266.0,95259.0,0.01049769]
[1768681864153,0.01049725,95263.0,95255.0,0.1594976]
[1768681864355,0.01049714,95264.0,95257.0,0.01049791]
[1768681865065,0.01049714,95264.0,95258.0,0.0104978]
[1768681865277,0.01049703,95265.0,95258.0,0.0104978]
[1768681866642,0.01049714,95264.0,95257.0,0.01049791]
[1768681867265,0.01049714,95264.0,95258.0,0.0104978]
[1768681867629,0.01049703,95265.0,95258.0,0.0104978]
[1768681868496,0.01049714,95264.0,95258.0,0.0107453]
[1768681868700,0.01049703,95265.0,95258.0,0.0107453]
[1768681869944,0.01049714,95264.0,95258.0,0.0107453]
[1768681870774,0.01049615,95273.0,95261.0,0.16999507]
[1768681870987,0.38117043,95270.0,95264.0,0.01049714]
[1768681871262,0.39166691,95270.0,95262.0,0.01049736]
[1768681871473,0.39166691,95270.0,95263.0,0.01049725]
[1768681871891,0.38117043,95270.0,95264.0,0.01049714]
[1768681872320,0.1272,95270.0,95264.0,0.01049714]
[1768681872734,0.13769648,95270.0,95264.0,0.01049714]
[1768681872943,0.1272,95270.0,95265.0,0.01049703]
[1768681873148,0.13769648,95270.0,95264.0,0.01049714]
[1768681873357,0.13769648,95270.0,95263.0,0.01049725]
[1768681873771,0.13769648,95270.0,95264.0,0.01049714]
[1768681874617,0.13769637,95271.0,95265.0,0.01049703]
[1768681874834,0.01049648,95270.0,95263.0,0.01049725]
[1768681875089,0.13769637,95271.0,95265.0,0.01049703]
[1768681875343,0.13769637,95271.0,95264.0,0.01049714]
[1768681876230,0.1272,95271.0,95265.0,0.01049703]
[1768681876691,0.13769637,95271.0,95265.0,0.01049703]
[1768681877482,0.13769637,95271.0,95264.0,0.01049714]
[1768681878003,0.13769637,95271.0,95263.0,0.01049725]
[1768681878219,0.01049648,95270.0,95264.0,0.01049714]
[1768681879125,0.13769637,95271.0,95264.0,0.01049714]
[1768681879786,0.13769637,95271.0,95265.0,0.01049703]
[1768681880207,0.01049648,95270.0,95264.0,0.01049714]
[1768681880441,0.13769637,95271.0,95265.0,0.01049703]
[1768681880938,0.01049648,95270.0,95264.0,0.01049714]
[1768681881787,0.13769637,95271.0,95265.0,0.01049703]
[1768681882307,0.13769637,95271.0,95264.0,0.01049714]
[1768681882308,0.01049648,95270.0,95264.0,0.01049714]
[1768681882553,0.01049648,95270.0,95265.0,0.01049703]
[1768681882864,0.13769637,95271.0,95265.0,0.01049703]
[1768681883082,0.13769637,95271.0,95264.0,0.01049714]
[1768681883083,0.01049648,95270.0,95264.0,0.01049714]
[1768681883507,0.01049648,95270.0,95265.0,0.01049703]
[1768681883934,0.01049648,95270.0,95264.0,0.01049714]
[1768681885702,0.01049648,95270.0,95265.0,0.01049703]
[1768681885931,0.01049648,95270.0,95264.0,0.01049714]
[1768681886655,0.01049648,95270.0,95265.0,0.01049703]
[1768681887441,0.1272,95271.0,95265.0,0.06298218]
[1768681887642,0.1272,95271.0,95264.0,0.06298272]
[1768681887813,0.1272,95271.0,95264.0,0.05247975]
[1768681887814,0.13769637,95271.0,95264.0,0.05247975]
[1768681888036,0.13769637,95271.0,95265.0,0.01049703]
[1768681888420,0.01049659,95269.0,95263.0,0.01049725]
[1768681888607,0.01049648,95270.0,95264.0,0.01049714]
[1768681891115,0.01049648,95270.0,95263.0,1e-08]
[1768681891351,0.01049648,95270.0,95264.0,0.01049714]
[1768681891499,0.01049659,95269.0,95264.0,0.01049714]
[1768681891709,0.0104967,95268.0,95263.0,1e-08]
[1768681892235,0.01049681,95267.0,95263.0,1e-08]
[1768681892617,0.0629816,95266.0,95263.0,1e-08]
[1768681892818,0.01049692,95266.0,95263.0,1e-08]
[1768681894315,0.01149692,95266.0,95263.0,1e-08]
[1768681895920,0.001,95266.0,95263.0,1e-08]
[1768681896712,0.001,95266.0,95261.0,0.05778477]
[1768681897122,0.001,95266.0,95263.0,0.01049725]
[1768681897322,0.001,95266.0,95262.0,0.01049736]
[1768681897527,0.0104967,95268.0,95262.0,0.00529736]
[1768681897728,0.0104967,95268.0,95261.0,0.01049747]
[1768681897963,0.001,95266.0,95261.0,0.05778468]
[1768681898358,0.0104967,95268.0,95261.0,0.05778468]
[1768681898604,0.0104967,95268.0,95262.0,0.01049736]
[1768681898762,0.0114967,95268.0,95262.0,0.01049736]
[1768681899981,0.001,95268.0,95263.0,0.01049725]
[1768681900187,0.0104967,95268.0,95263.0,0.01049725]
[1768681900323,0.0114967,95268.0,95263.0,0.01049725]
[1768681900862,0.0104967,95268.0,95263.0,0.01049725]
[1768681901259,0.0114967,95268.0,95263.0,0.01049725]
[1768681902306,0.01049681,95267.0,95262.0,0.01049736]
[1768681902525,0.01049681,95267.0,95261.0,0.01049747]
[1768681902526,0.01049692,95266.0,95261.0,0.01049747]
[1768681902739,0.01049692,95266.0,95262.0,0.01049736]
[1768681903200,0.01049692,95266.0,95260.0,0.01074508]
[1768681903423,0.01049692,95266.0,95261.0,0.01049747]
[1768681904310,0.01049681,95267.0,95262.0,0.01049736]
[1768681904646,0.001,95266.0,95262.0,0.01049736]
[1768681905006,0.01049681,95267.0,95262.0,0.01049736]
[1768681905398,0.01049692,95266.0,95260.0,0.01074508]
[1768681906230,0.01049703,95265.0,95260.0,0.01074508]
[1768681908014,0.01149703,95265.0,95260.0,0.01074508]
[1768681909287,0.01049714,95264.0,95260.0,0.0002475]
[1768681909479,0.01049714,95264.0,95260.0,0.01074508]
[1768681909622,0.01149703,95265.0,95260.0,0.01074508]
[1768681909834,0.01049703,95265.0,95260.0,0.01074508]
[1768681910036,0.01149703,95265.0,95260.0,0.01074508]
[1768681911057,0.01049703,95265.0,95260.0,0.01074508]
[1768681911259,0.01049714,95264.0,95260.0,0.01074508]
[1768681913114,0.01149714,95264.0,95260.0,0.01074508]
[1768681913337,0.01149714,95264.0,95260.0,0.0002475]
[1768681913665,0.01149714,95264.0,95260.0,0.01074508]
[1768681915032,0.01149714,95264.0,95260.0,0.0002475]
[1768681915295,0.01149714,95264.0,95260.0,0.01074508]
[1768681916331,0.001,95264.0,95261.0,0.01049747]
[1768681916533,0.01049692,95266.0,95261.0,0.01049747]
[1768681916730,0.01049692,95266.0,95262.0,0.01049736]
[1768681916935,0.001,95264.0,95262.0,0.01049736]
[1768681917327,0.01049692,95266.0,95262.0,0.01049736]
[1768681917710,0.06398155,95266.0,95260.0,0.01074508]
[1768681917910,0.01049703,95265.0,95261.0,0.01049747]
[1768681920126,0.01110798,95265.0,95261.0,0.01049747]
[1768681920950,0.01049714,95264.0,95260.0,0.0002475]
[1768681921268,0.01049714,95264.0,95260.0,0.01074508]
[1768681921815,0.001,95265.0,95261.0,0.01049747]
[1768681922013,0.001,95265.0,95261.0,0.06298476]
[1768681922590,0.001,95265.0,95261.0,0.06298481]
[1768681923102,0.01049692,95266.0,95261.0,0.06298481]
[1768681923410,0.001,95265.0,95262.0,0.01049736]
[1768681923949,0.01049692,95266.0,95262.0,0.01049736]
[1768681924408,0.01149692,95266.0,95261.0,0.03168734]
[1768681924619,0.001,95266.0,95262.0,0.03156591]
[1768681924772,0.01049681,95267.0,95262.0,0.03156591]
[1768681924969,0.01049692,95266.0,95262.0,0.01049736]
[1768681925174,0.01149692,95266.0,95262.0,0.01049736]
[1768681925374,0.001,95266.0,95263.0,0.01049725]
[1768681926008,0.01149692,95266.0,95262.0,0.01049736]
[1768681926358,0.01049692,95266.0,95262.0,0.01049736]
[1768681927347,0.01049681,95267.0,95263.0,0.01049725]
[1768681927886,0.01049681,95267.0,95263.0,0.06298352]
[1768681928145,0.01049681,95267.0,95264.0,0.01049714]
[1768681928363,0.01049681,95267.0,95264.0,0.0104526]
[1768681928571,0.001,95266.0,95264.0,0.0104526]
[1768681928784,0.01149692,95266.0,95262.0,0.01049736]
[1768681929212,0.01149692,95266.0,95263.0,0.01049725]
[1768681929453,0.01149692,95266.0,95262.0,0.01049736]
[1768681929693,0.01149692,95266.0,95263.0,0.01049725]
[1768681929901,0.01049692,95266.0,95263.0,0.01049725]
[1768681931209,0.01049692,95266.0,95262.0,0.01049736]
[1768681931489,0.001,95266.0,95263.0,0.01049725]
[1768681932482,0.01110779,95266.0,95261.0,0.01049747]
[1768681932688,0.01049692,95266.0,95262.0,0.01049736]
[1768681933168,0.01149692,95266.0,95262.0,0.01049736]
[1768681933670,0.01049692,95266.0,95262.0,0.01049736]
[1768681933872,0.01149692,95266.0,95262.0,0.01049736]
[1768681934480,0.01149692,95266.0,95262.0,0.00529736]
[1768681934679,0.01149692,95266.0,95261.0,0.04728731]
[1768681934879,0.01149692,95266.0,95259.0,0.05238148]
[1768681935081,0.01149692,95266.0,95261.0,0.03688692]
[1768681935285,0.01149692,95266.0,95261.0,0.01088692]
[1768681935480,0.001,95266.0,95262.0,0.04208674]
[1768681935716,0.001,95266.0,95259.0,0.05238106]
[1768681935887,0.01049681,95267.0,95261.0,0.02648699]
[1768681936088,0.01049681,95267.0,95258.0,0.04728856]
[1768681936329,0.001,95266.0,95261.0,0.03698602]
[1768681936512,0.001,95266.0,95256.0,0.20465802]
[1768681936712,0.01049681,95267.0,95256.0,0.20465802]
[1768681937115,0.01149681,95267.0,95256.0,0.20465802]
[1768681937322,0.01149681,95267.0,95263.0,0.01049725]
[1768681937526,0.01049681,95267.0,95263.0,0.01049725]
[1768681937694,0.01049681,95267.0,95261.0,0.04728685]
[1768681938327,0.01049681,95267.0,95261.0,0.04208685]
[1768681939398,0.01049681,95267.0,95263.0,0.00529725]
[1768681939606,0.01149681,95267.0,95263.0,0.00529725]
[1768681939826,0.01032885,95267.0,95263.0,0.00529725]
[1768681940237,0.00932885,95267.0,95263.0,0.00529725]
[1768681940437,0.01049659,95269.0,95264.0,0.01049714]
[1768681940659,0.26448321,95274.0,95265.0,0.14519234]
[1768681940854,0.01049637,95271.0,95267.0,0.15568915]
[1768681941058,0.01049637,95271.0,95267.0,0.01049681]
[1768681941984,0.01049648,95270.0,95266.0,0.01049692]
[1768681942659,0.001,95269.0,95266.0,0.01049692]
[1768681943231,0.01049648,95270.0,95265.0,0.01049703]
[1768681943983,0.01049648,95270.0,95265.0,0.06298211]
[1768681944794,0.01049648,95270.0,95266.0,0.01049692]
[1768681946697,0.01049648,95270.0,95265.0,0.01049703]
[1768681946914,0.06297955,95269.0,95264.0,0.01049714]
[1768681947120,0.01049659,95269.0,95265.0,0.01049703]
[1768681947736,0.01049648,95270.0,95266.0,0.01049692]
[1768681947938,0.01049637,95271.0,95267.0,0.01049681]
[1768681948988,0.06297896,95270.0,95265.0,0.01049703]
[1768681949197,0.01049659,95269.0,95266.0,0.01049692]
[1768681949411,0.01049648,95270.0,95266.0,0.01049692]
[1768681950668,0.01049648,95270.0,95265.0,0.01049703]
[1768681950880,0.06297902,95270.0,95265.0,0.01049703]
[1768681951659,0.05248301,95269.0,95265.0,0.01049703]
[1768681951820,0.0104967,95268.0,95264.0,0.01049714]
[1768681952837,0.01049659,95269.0,95265.0,0.01049703]
[1768681953001,0.0104967,95268.0,95265.0,0.01049703]
[1768681953218,0.0104967,95268.0,95264.0,0.01049714]
[1768681953419,0.01049659,95269.0,95265.0,0.01049703]
[1768681954315,0.0104967,95268.0,95264.0,0.01049714]
[1768681956518,0.0104967,95268.0,95262.0,0.14519234]
[1768681956762,0.0104967,95268.0,95264.0,0.01049714]
[1768681957195,0.01049659,95269.0,95265.0,0.01049703]
[1768681958021,0.01049648,95270.0,95266.0,0.01049692]
[1768681961950,0.01049637,95271.0,95267.0,0.01049681]
[1768681962451,0.0104967,95268.0,95264.0,0.01049714]
[1768681962660,0.01049659,95269.0,95264.0,0.01049714]
[1768681962811,0.01049648,95270.0,95265.0,0.01049703]
[1768681963404,0.01049648,95270.0,95265.0,0.06298211]
[1768681964335,0.01049648,95270.0,95267.0,0.01049681]
[1768681966298,0.01049637,95271.0,95267.0,0.01049681]
[1768681966896,0.1272,95274.0,95269.0,0.01049659]
[1768681967036,0.01049626,95272.0,95268.0,0.0104967]
[1768681967242,0.01049637,95271.0,95268.0,0.0104967]
[1768681967872,0.01049637,95271.0,95267.0,0.01049681]
[1768681968903,0.01049637,95271.0,95268.0,0.0104967]
[1768681969109,0.01049637,95271.0,95267.0,0.01049681]
[1768681980780,0.01049648,95270.0,95266.0,0.01049692]
[1768681981601,0.01049659,95269.0,95264.0,0.01049714]
[1768681981775,0.01049659,95269.0,95265.0,0.01049703]
[1768681981977,0.01049648,95270.0,95266.0,0.01049692]
[1768681983256,0.01049659,95269.0,95266.0,0.01049692]
[1768681983458,0.01049648,95270.0,95266.0,0.01049692]
[1768681983655,0.01049648,95270.0,95265.0,0.01049703]
[1768681983656,0.01049659,95269.0,95265.0,0.01049703]
[1768681984040,0.01049648,95270.0,95266.0,0.01049692]
[1768681985611,0.01049659,95269.0,95265.0,0.01049703]
[1768681987074,0.01049648,95270.0,95266.0,0.01049692]
[1768681987486,0.01049637,95271.0,95267.0,0.01049681]
[1768681987702,0.01049637,95271.0,95268.0,0.0104967]
[1768681987903,0.01049637,95271.0,95267.0,0.01049681]
[1768681989254,0.01049648,95270.0,95266.0,0.01049692]
[1768681990527,0.01049648,95270.0,95264.0,0.01049714]
[1768681990528,0.01049659,95269.0,95264.0,0.01049714]
[1768681990740,0.01049659,95269.0,95265.0,0.01049703]
[1768681990956,0.0104967,95268.0,95265.0,0.01049703]
[1768681991166,0.01049659,95269.0,95265.0,0.01049703]
[1768681993492,0.01049659,95269.0,95265.0,0.0103022]
[1768681993731,0.0104967,95268.0,95265.0,0.0103022]
[1768681994654,0.01049659,95269.0,95265.0,0.01010738]
[1768681995056,0.01049659,95269.0,95265.0,0.00991257]
[1768681997051,0.0104967,95268.0,95265.0,0.00991257]
[1768681997334,0.01049659,95269.0,95265.0,0.00991257]
[1768681999079,0.01049659,95269.0,95265.0,0.00971775]
[1768682000810,0.0629797,95269.0,95265.0,0.00971775]
[1768682002073,0.01049659,95269.0,95265.0,0.00971775]
[1768682002469,0.01049659,95269.0,95266.0,0.01049692]
[1768682002685,0.01049659,95269.0,95265.0,0.00971775]
[1768682004303,0.01049659,95269.0,95265.0,0.00952294]
[1768682005530,0.01049659,95269.0,95266.0,0.01049692]
[1768682005955,0.01049659,95269.0,95265.0,0.00932814]
[1768682006298,0.01049659,95269.0,95265.0,0.00913334]
[1768682014293,0.01049648,95270.0,95266.0,0.06298147]
[1768682014894,0.01049637,95271.0,95267.0,0.01049681]
[1768682016256,0.01049637,95271.0,95268.0,0.0104967]
[1768682016458,0.01049637,95271.0,95268.0,0.01045125]
[1768682016871,0.01049637,95271.0,95267.0,0.01049681]
[1768682018509,0.01049637,95271.0,95267.0,0.010302]
[1768682018715,0.13769593,95275.0,95271.0,0.01049637]
[1768682019608,0.13769593,95275.0,95271.0,0.01041753]
[1768682020776,0.13769593,95275.0,95271.0,0.01037208]
[1768682021411,0.13769593,95275.0,95271.0,0.01017726]
[1768682022659,0.01049582,95276.0,95272.0,0.01049626]
[1768682022900,0.06297499,95276.0,95272.0,0.01049626]
[1768682023317,0.01049593,95275.0,95271.0,0.01049637]
[1768682023495,0.01049604,95274.0,95270.0,0.01049648]
[1768682026685,0.01049604,95274.0,95270.0,0.00952902]
[1768682026873,0.01049604,95274.0,95269.0,0.01049659]
[1768682027245,0.06297581,95275.0,95269.0,0.06297913]
[1768682028494,0.06297581,95275.0,95270.0,0.01049648]
[1768682029521,0.01049593,95275.0,95270.0,0.01049648]
[1768682030217,0.01049593,95275.0,95270.0,0.01030166]
[1768682031000,0.01049593,95275.0,95271.0,0.01049637]
[1768682033444,0.04199092,95277.0,95272.0,0.01049626]
[1768682033606,0.01049582,95276.0,95272.0,0.01049626]
[1768682033807,0.01049571,95277.0,95273.0,0.01049615]
[1768682034015,0.01049582,95276.0,95272.0,0.01049626]
[1768682034790,0.01049593,95275.0,95272.0,0.01049626]
[1768682036776,0.01049593,95275.0,95272.0,0.01030145]
[1768682038962,0.01049593,95275.0,95271.0,0.05248184]
[1768682039166,0.01049593,95275.0,95272.0,0.01049626]
[1768682039790,0.01049593,95275.0,95271.0,0.01049637]
[1768682040656,0.01049593,95275.0,95272.0,0.01049626]
[1768682042669,0.01049604,95274.0,95269.0,0.01049659]
[1768682042975,0.06297662,95274.0,95269.0,0.01049659]
[1768682043182,0.01049615,95273.0,95269.0,0.01049659]
[1768682043878,0.01049626,95272.0,95267.0,0.01049681]
[1768682044111,0.01049626,95272.0,95268.0,0.0104967]
[1768682044323,0.01049615,95273.0,95269.0,0.01049659]
[1768682044914,0.01049604,95274.0,95270.0,0.01049648]
[1768682045070,0.01049604,95274.0,95270.0,0.06297868]
[1768682045802,0.01049604,95274.0,95270.0,0.01049648]
[1768682046206,0.01049604,95274.0,95271.0,0.01049637]
[1768682047066,0.02099208,95275.0,95271.0,0.01049637]
[1768682047306,0.07347177,95275.0,95271.0,0.01049637]
[1768682048518,0.02099208,95275.0,95271.0,0.01049637]
[1768682048675,0.01049604,95274.0,95270.0,0.01049648]
[1768682049041,0.06297631,95274.0,95270.0,0.01049648]
[1768682049263,0.01049615,95273.0,95269.0,0.01049659]
[1768682049682,0.00996681,95273.0,95269.0,0.01049659]
[1768682051704,0.00996681,95273.0,95270.0,0.01049648]
[1768682055728,0.00996681,95273.0,95269.0,0.01049659]
[1768682059017,0.00996681,95273.0,95270.0,0.01049648]
[1768682064050,0.01049604,95274.0,95270.0,0.01049648]
[1768682069521,0.06297628,95274.0,95270.0,0.01049648]
[1768682070453,0.01049604,95274.0,95270.0,0.01049648]
[1768682075908,0.01049615,95275.0,95271.0,0.01049637]
[1768682076116,0.01049615,95275.0,95271.0,0.06297813]
[1768682076337,0.06297522,95276.0,95271.0,0.01049637]
[1768682076551,0.01049582,95276.0,95271.0,0.06297821]
[1768682077004,0.01049593,95275.0,95272.0,0.01049626]
[1768682077931,0.01049582,95276.0,95272.0,0.01049626]
[1768682078190,0.01049516,95282.0,95277.0,0.01049571]
[1768682078431,0.01049538,95280.0,95276.0,0.01049582]
[1768682079121,0.01049538,95280.0,95274.0,0.01049604]
[1768682079355,0.01049538,95280.0,95275.0,0.01049593]
[1768682079618,0.01049538,95280.0,95275.0,0.06297528]
[1768682080215,0.01049538,95280.0,95275.0,0.01049593]
[1768682081305,0.01049538,95280.0,95276.0,0.01049582]
[1768682085955,0.01049538,95280.0,95275.0,0.01049593]
[1768682086091,0.01049538,95280.0,95276.0,0.01049582]
[1768682086504,0.06297234,95280.0,95276.0,0.01049582]
[1768682086704,0.01049538,95280.0,95276.0,0.01049582]
[1768682087502,0.01010538,95280.0,95276.0,0.01049582]
[1768682088677,0.01110538,95280.0,95276.0,0.01049582]
[1768682089129,0.01010538,95280.0,95276.0,0.01049582]
[1768682089790,0.00971537,95280.0,95276.0,0.01049582]
[1768682090333,0.01071537,95280.0,95276.0,0.01049582]
[1768682090835,0.01071537,95280.0,95277.0,0.01049571]
[1768682091060,0.01032534,95280.0,95277.0,0.00945723]
[1768682091622,0.00932534,95280.0,95277.0,0.00945723]
[1768682093327,0.01049549,95279.0,95276.0,0.01049582]
[1768682094126,0.01049571,95277.0,95272.0,0.13420878]
[1768682094337,0.01049571,95277.0,95272.0,0.16367074]
[1768682094605,0.0104956,95278.0,95274.0,0.01049604]
[1768682094771,0.01049571,95277.0,95273.0,0.01049615]
[1768682095197,0.01049582,95276.0,95272.0,0.01049626]
[1768682095339,0.01049593,95275.0,95272.0,0.01049626]
[1768682096194,0.01010588,95275.0,95270.0,0.06297875]
[1768682096352,0.01010588,95275.0,95271.0,0.01049637]
[1768682097382,0.01049582,95276.0,95272.0,0.01049626]
[1768682098772,0.01049582,95276.0,95273.0,0.01049615]
[1768682098976,0.01049593,95275.0,95272.0,0.01049626]
[1768682099186,0.06297576,95275.0,95271.0,0.01049637]
[1768682099482,0.01049604,95274.0,95271.0,0.01049637]
[1768682100639,0.01049615,95273.0,95268.0,0.0104967]
[1768682100842,0.01049615,95273.0,95249.0,0.04196]
[1768682100843,0.01049648,95270.0,95262.0,0.19018396]
[1768682101042,0.01049703,95265.0,95262.0,0.1272]
[1768682101472,0.01049703,95265.0,95261.0,0.01049747]
[1768682103441,0.01010695,95265.0,95261.0,0.01049747]
[1768682103615,0.01049692,95266.0,95261.0,0.06298456]
[1768682103847,0.01010685,95266.0,95262.0,0.01049736]
[1768682104761,0.01010685,95266.0,95263.0,0.01049725]
[1768682104967,0.01049681,95267.0,95263.0,0.01049725]
[1768682105701,0.01049692,95266.0,95262.0,0.01049736]
[1768682105898,0.01049703,95265.0,95262.0,0.01049736]
[1768682106203,0.01049703,95265.0,95261.0,0.01049747]
[1768682108366,0.01049725,95263.0,95260.0,0.01049758]
[1768682108709,0.01049714,95264.0,95260.0,0.01049758]
[1768682108921,0.01049725,95263.0,95260.0,0.01049758]
[1768682109383,0.01049714,95264.0,95260.0,0.01045213]
[1768682109753,0.0097169,95264.0,95260.0,0.01045213]
[1768682109924,0.01049703,95265.0,95261.0,0.01049747]
[1768682110365,0.01031407,95265.0,95261.0,0.01049747]
[1768682110504,0.01011036,95265.0,95261.0,0.01049747]
[1768682110706,0.01049692,95266.0,95261.0,0.01049747]
[1768682110905,0.01010684,95266.0,95261.0,0.01049747]
[1768682111123,0.01010684,95266.0,95262.0,0.01049736]
[1768682111526,0.00971673,95266.0,95262.0,0.01049736]